fUST/lending_fUST_20240513
["ID","MTS","AMOUNT","RATE_DAILY","PERIOD"]
[326923774,1715590239162,-500.0,0.00024399,2]
[326923775,1715590239174,-500.0,0.00024399,2]
[326923776,1715590239185,-500.0,0.00024399,2]
[326923777,1715590239196,-500.0,0.00024399,2]
[326923778,1715590239206,-500.0,0.00024399,2]
[326923779,1715590239219,-500.0,0.00024399,2]
[326923780,1715590239230,-500.0,0.00024399,2]
[326923781,1715590239241,-500.0,0.00024399,2]
[326923782,1715590239252,-500.0,0.00024399,2]
[326923783,1715590239264,-500.0,0.00024399,2]
[326923784,1715590239279,-500.0,0.00024399,2]
[326923785,1715590239290,-3825.15476216,0.000244,2]
[326923786,1715590239301,-181.13907303,0.00025,2]
[326923787,1715590239311,-360.40107248,0.00025301,2]
[326923788,1715590239324,-203.4,0.00025978,2]
[326923789,1715590239335,-245.047971,0.00026722,2]
[326923790,1715590239347,-12423.54,0.0002699,3]
[326923791,1715590239361,-8949.999999,0.00026998,2]
[326923792,1715590239373,-340.62949192,0.00027,2]
[326923793,1715590239384,-18280.59251609,0.00027,15]
[326923794,1715590239396,-1000.0,0.00027192,2]
[326923795,1715590239407,-1000.0,0.00027197,2]
[326923796,1715590239418,-1000.0,0.00027276,2]
[326923797,1715590239430,-1000.0,0.00027323,2]
[326923798,1715590239441,-1000.0,0.00027327,2]
[326923799,1715590239452,-1000.0,0.0002734,2]
[326923800,1715590239466,-154.7215013,0.0002739,2]
[326923801,1715590239476,-198.1561113,0.000274,2]
[326923802,1715590239486,-360.40107248,0.0002755,2]
[326923803,1715590239496,-52354.53022065,0.00028,4]
[326923804,1715590239506,-221.38207295,0.00028,2]
[326923805,1715590239516,-203.4,0.0002818,3]
[326923806,1715590239649,-1034.96713852,0.0002877,2]
[326923807,1715590239666,-321.07022664,0.00029581,2]
[326923808,1715590239676,-599.77625295,0.00029601,2]
[326923809,1715590239685,-833.60436794,0.00029695,2]
[326923810,1715590239695,-360.40107248,0.000298,2]
[326923811,1715590239704,-9998.03330614,0.000299,2]
[326923880,1715590243722,-10352.95,0.0002989,3]
[326923881,1715590243732,-41278.42768543,0.000299,2]
[326923882,1715590243743,-50102.09293198,0.000299,2]
[326923883,1715590243882,-120.70267676,0.000299,2]
[326923896,1715590282030,154.7215013,9.999e-05,2]
[326923899,1715590588319,383.77173943,9.999e-05,2]
[326923907,1715591008499,701.91934143,9.999e-05,2]
[326923913,1715591225097,-193.28561035,0.00018435,2]
[326923915,1715591240120,-7129.74697341,0.00018434,2]
[326923920,1715591326484,383.77173943,9.999e-05,2]
[326923923,1715591354114,250.0,0.00017443,2]
[326923924,1715591360100,-9390.44266503,0.00018333,2]
[326923925,1715591360120,-2398.34610882,0.00018334,2]
[326923926,1715591360141,-1380.8812215,0.00018335,2]
[326923927,1715591360161,-383.77173943,0.00018433,2]
[326923928,1715591360184,-104234.75397672,0.00018434,2]
[326923929,1715591360205,-24706.71438965,0.00018435,2]
[326923930,1715591360225,-2406.6622091,0.0001847,2]
[326923933,1715591406765,2811.3949182,0.0001847,2]
[326923958,1715591432921,-17566.8012269,0.00018469,2]
[326923959,1715591432931,-16424.02023505,0.0001847,2]
[326923960,1715591432942,-281.31656163,0.0001847,2]
[326923961,1715591432951,-197.26968953,0.000189,2]
[326923962,1715591432961,-423.52230465,0.00019077,2]
[326923963,1715591432970,-168.16631479,0.00019078,2]
[326923965,1715591432979,-8296.28091016,0.00019176,2]
[326923967,1715591432989,-25570.23848019,0.00019177,2]
[326923969,1715591432999,-2411.35155598,0.00019177,2]
[326923971,1715591433009,-500.0,0.00019178,2]
[326923973,1715591433018,-291.95214701,0.00019178,2]
[326923975,1715591433027,-500.0,0.00019178,2]
[326923977,1715591433036,-500.0,0.00019178,2]
[326923979,1715591433045,-324.42349184,0.00019178,2]
[326923981,1715591433056,-500.0,0.00019178,2]
[326923983,1715591433066,-500.0,0.00019178,2]
[326923985,1715591433075,-500.0,0.00019178,2]
[326923987,1715591433084,-500.0,0.00019178,2]
[326923988,1715591433094,-500.0,0.00019178,2]
[326923989,1715591433103,-175.987975,0.00019178,2]
[326923990,1715591433112,-701.44833747,0.00019814,2]
[326923991,1715591433122,-241.94041048,0.00019815,2]
[326923992,1715591433132,-1042.26396896,0.00019817,2]
[326923993,1715591433142,-904.83466521,0.00019817,2]
[326923994,1715591433152,-168.16631479,0.000199,2]
[326923995,1715591433282,-500.0,0.00019999,2]
[326923996,1715591433298,-500.0,0.00019999,2]
[326923997,1715591433319,-500.0,0.00019999,2]
[326923998,1715591433329,-433.58992697,0.00019999,2]
[326923999,1715591433339,-500.0,0.00019999,2]
[326924000,1715591433349,-500.0,0.00019999,2]
[326924001,1715591433359,-483.72813292,0.00019999,2]
[326924002,1715591433369,-500.0,0.00019999,2]
[326924003,1715591433379,-500.0,0.00019999,2]
[326924004,1715591433389,-500.0,0.00019999,2]
[326924005,1715591433398,-2012.5506079,0.0002,2]
[326924006,1715591433411,-35845.21370088,0.0002,2]
[326924007,1715591433420,-28112.0,0.0002,2]
[326924008,1715591433430,-154.83674509,0.0002,2]
[326924009,1715591433440,-14459.76563015,0.000208,2]
[326924010,1715591433449,-189.42689207,0.00020808,2]
[326924011,1715591433458,-600.0,0.00020899,2]
[326924012,1715591433467,-16709.60296703,0.00020899,2]
[326924013,1715591433476,-155.00717285,0.00020901,2]
[326924014,1715591433486,-2631.62253503,0.00020901,2]
[326924015,1715591433496,-311.80904893,0.00020901,2]
[326924016,1715591433506,-484.73709701,0.00020901,2]
[326924017,1715591433515,-154.89081057,0.00020901,2]
[326924018,1715591433524,-10263.51014021,0.00020902,2]
[326924019,1715591433534,-154.7215013,0.00020902,2]
[326924020,1715591433543,-217.79884035,0.00020906,2]
[326924021,1715591433552,-2674.97171764,0.00020906,2]
[326924022,1715591433562,-154.8915759,0.00020907,2]
[326924023,1715591433571,-20315.51703998,0.00020908,2]
[326924024,1715591433581,-245.158213,0.00020909,2]
[326924025,1715591433591,-238.47421384,0.00020909,2]
[326924026,1715591433600,-155.01783467,0.0002091,2]
[326924027,1715591433610,-286.21324352,0.0002091,2]
[326924028,1715591433619,-409.8188838,0.0002091,2]
[326924029,1715591433628,-580.39618932,0.0002091,2]
[326924030,1715591433643,-521.31028381,0.0002091,2]
[326924031,1715591433652,-281.68017694,0.00020911,2]
[326924032,1715591433662,-200.71325179,0.00020911,2]
[326924033,1715591433671,-156.08482756,0.00020911,2]
[326924034,1715591433681,-586.45376875,0.00020912,2]
[326924035,1715591433691,-1689.54174305,0.00020912,2]
[326924036,1715591433700,-273.52788847,0.00020912,2]
[326924037,1715591433709,-816.46166498,0.00020912,2]
[326924038,1715591433721,-155.29060798,0.00020912,2]
[326924039,1715591433731,-317.12009931,0.00020912,2]
[326924040,1715591433741,-1168.52430027,0.00020912,2]
[326924041,1715591433750,-424.82507512,0.00020912,2]
[326924042,1715591433760,-277.52487802,0.00020913,2]
[326924043,1715591433769,-166.666666,0.00021918,2]
[326924044,1715591433779,-1747.88111448,0.00022262,2]
[326924045,1715591433788,-163.259382,0.00023562,2]
[326924046,1715591433797,-161.326027,0.00023562,2]
[326924047,1715591433807,-152.5,0.00023714,2]
[326924048,1715591433816,-197.26968953,0.000239,2]
[326924049,1715591433825,-166.666666,0.00024482,2]
[326924050,1715591433835,-1747.88111448,0.00024808,2]
[326924051,1715591433844,-1000.0,0.00024918,2]
[326924052,1715591433853,-758.5567371,0.00025,2]
[326924053,1715591433864,-329.35086233,0.00025,2]
[326924054,1715591433873,-1590.38463391,0.00025,2]
[326924055,1715591433885,-51867.47736559,0.00025,2]
[326924133,1715591441314,-405.89202429,0.00019999,2]
[326924164,1715591443884,-94.10797571,0.00019999,2]
[326924165,1715591443894,-500.0,0.00019999,2]
[326924166,1715591443903,-500.0,0.00019999,2]
[326924167,1715591443912,-500.0,0.00019999,2]
[326924168,1715591443921,-500.0,0.00019999,2]
[326924169,1715591443930,-500.0,0.00019999,2]
[326924170,1715591443939,-500.0,0.00019999,2]
[326924171,1715591443949,-500.0,0.00019999,2]
[326924172,1715591443958,-224.06049268,0.00019999,2]
[326924173,1715591444052,-500.0,0.00019999,2]
[326924174,1715591444063,-500.0,0.00019999,2]
[326924175,1715591444072,-500.0,0.00019999,2]
[326924176,1715591444081,-500.0,0.00019999,2]
[326924177,1715591444090,-500.0,0.00019999,2]
[326924179,1715591444099,-500.0,0.00019999,2]
[326924181,1715591444108,-51681.84645755,0.00025,2]
[326924208,1715591613034,154.73694719,9.999e-05,2]
[326924210,1715592067713,242.01164412,9.999e-05,2]
[326924211,1715592112238,212.306417,0.00035616,120]
[326924212,1715592133508,701.91934143,9.999e-05,2]
[326924214,1715592324134,16204.3096802,0.00017874,2]
[326924215,1715592440188,-184.19041565,0.00017754,2]
[326924216,1715592440210,-616.87908082,0.00017847,2]
[326924217,1715592442143,-1901.99288835,0.00017847,2]
[326924218,1715592453852,250.0,0.00016848,2]
[326924221,1715592471332,2627.65064571,9.999e-05,2]
[326924222,1715592493720,154.73694719,0.00016848,2]
[326924223,1715592509698,154.73694719,0.00016848,2]
[326924224,1715592525712,204.9326713,0.00016848,2]
[326924226,1715592550115,-701.91934143,0.0001775,2]
[326924227,1715592550144,-242.01164412,0.0001775,2]
[326924228,1715592550316,-15705.76411353,0.00017751,2]
[326924229,1715592550337,-2594.90254816,0.00017752,2]
[326924230,1715592550358,-1667.6674938,0.00017754,2]
[326924231,1715592550378,-8953.49295907,0.00017844,2]
[326924232,1715592550398,-20278.20235962,0.00017845,2]
[326924233,1715592550420,-59346.92978658,0.00017845,2]
[326924234,1715592550440,-531.03621077,0.00017849,2]
[326924235,1715592550461,-155.42567318,0.00017853,2]
[326924236,1715592550482,-744.67639595,0.00017853,2]
[326924237,1715592550504,-206.10551378,0.00017853,2]
[326924238,1715592550525,-1093.15488172,0.00017853,2]
[326924239,1715592550547,-1578.94023336,0.00017853,2]
[326924240,1715592550573,-24900.0,0.00017855,2]
[326924241,1715592550594,-2535.7035294,0.00017874,2]
[326924242,1715592550615,-159.99397363,0.00018601,2]
[326924243,1715592550635,-412.53784759,0.00018702,2]
[326924244,1715592550655,-486.94190461,0.00018705,2]
[326924258,1715592571155,284.74998966,9.999e-05,2]
[326924335,1715592632082,-897.61888651,0.00018734,2]
[326924337,1715592632091,-150.0,0.000189,2]
[326924339,1715592632102,-448.9562202,0.00019017,2]
[326924341,1715592632111,-600.571951,0.00019097,2]
[326924343,1715592632120,-701.91934143,0.00019902,2]
[326924345,1715592632129,-412.8985133,0.00019903,2]
[326924347,1715592632138,-894.2497255,0.00019903,2]
[326924349,1715592632147,-665.67444412,0.00019904,2]
[326924351,1715592632155,-929.9125183,0.00019906,2]
[326924353,1715592632164,-3057.36000381,0.00019906,2]
[326924355,1715592632174,-387.99916151,0.00019907,2]
[326924357,1715592632183,-440.78332433,0.0002,2]
[326924360,1715592632194,-1430.38704606,0.0002,2]
[326924462,1715592638150,-242.01164412,0.00019901,2]
[326924463,1715592638159,-9486.67578466,0.0002,2]
[326924464,1715592638168,-333.86275,0.00020906,2]
[326924465,1715592638177,-175.06946567,0.00020907,2]
[326924466,1715592638186,-319.45949644,0.0002091,2]
[326924472,1715592642281,-2305.42996937,0.0002091,2]
[326924473,1715592642518,-180.74442314,0.0002091,2]
[326924476,1715592642527,-273.95177686,0.0002091,2]
[326924492,1715592642897,-1831.09590829,0.0002091,2]
[326924497,1715592642907,-1637.08070945,0.0002091,2]
[326924500,1715592642917,-282.21049365,0.0002091,2]
[326924503,1715592642927,-1465.79568205,0.0002091,2]
[326924506,1715592642937,-819.84178634,0.00020911,2]
[326924508,1715592642947,-169.1315941,0.00020911,2]
[326924510,1715592642956,-1218.29268057,0.00020911,2]
[326924511,1715592642970,-412.00890955,0.00020911,2]
[326924512,1715592642985,-500.0,0.00020911,2]
[326924513,1715592643002,-492.27664191,0.00020911,2]
[326924514,1715592643016,-7.72335809,0.00020911,2]
[326924515,1715592643029,-480.49149909,0.00020911,2]
[326924516,1715592643040,-765.8769719,0.00020912,2]
[326924517,1715592643050,-584.77523245,0.00020912,2]
[326924518,1715592643064,-4979.25605171,0.00020912,2]
[326924523,1715592643244,-476.90454008,0.0002091,2]
[326924524,1715592643253,-7356.42725004,0.00020912,2]
[326924525,1715592643262,-40795.05467327,0.00020912,2]
[326924526,1715592643274,-702.29712254,0.00020912,2]
[326924527,1715592643283,-187.94464468,0.00020912,2]
[326924528,1715592643292,-400.1099687,0.00020913,2]
[326924529,1715592643301,-500.0,0.00020913,2]
[326924530,1715592643311,-500.0,0.00020913,2]
[326924531,1715592643320,-500.0,0.00020913,2]
[326924532,1715592643329,-295.11843987,0.00020913,2]
[326924533,1715592643338,-500.0,0.00020913,2]
[326924534,1715592643347,-500.0,0.00020913,2]
[326924535,1715592643356,-417.2181478,0.00020913,2]
[326924536,1715592643366,-500.0,0.00020913,2]
[326924537,1715592643375,-500.0,0.00020913,2]
[326924538,1715592643385,-500.0,0.00020913,2]
[326924539,1715592643394,-500.0,0.00020913,2]
[326924540,1715592643403,-500.0,0.00020913,2]
[326924541,1715592643412,-500.0,0.00020913,2]
[326924542,1715592643421,-166.666666,0.00021918,2]
[326924543,1715592643430,-4348.4403956,0.00022,2]
[326924544,1715592643439,-154.82968734,0.00023,2]
[326924545,1715592643448,-150.0,0.0002351,2]
[326924546,1715592643458,-160.554815,0.00023562,2]
[326924547,1715592643467,-833.60436794,0.00024671,2]
[326924548,1715592643476,-4199.39358803,0.00025,2]
[326924549,1715592643486,-524.02750193,0.00025,2]
[326924550,1715592643495,-150.0,0.00025736,2]
[326924551,1715592643505,-251.17347755,0.00027,2]
[326924552,1715592643515,-223.04300104,0.0002739,2]
[326924553,1715592643524,-150.0,0.00027962,3]
[326924554,1715592643533,-10547.59,0.00028519,3]
[326924555,1715592643543,-1000.0,0.00028529,2]
[326924556,1715592643552,-600.571951,0.00028645,2]
[326924557,1715592643561,-244.33003923,0.00029333,2]
[326924558,1715592643571,-1000.0,0.00029509,2]
[326924559,1715592643580,-622.81552934,0.00029601,2]
[326924560,1715592643590,-1000.0,0.00029622,2]
[326924561,1715592643600,-9727.92,0.0002989,3]
[326924562,1715592643609,-15188.52,0.0002989,3]
[326924563,1715592643619,-12657.1,0.0002989,3]
[326924564,1715592643629,-43956.2642242,0.000299,2]
[326924565,1715592643638,-154.7215013,0.000299,2]
[326924566,1715592643647,-500.0,0.000299,2]
[326924567,1715592643656,-369.25801586,0.000299,2]
[326924568,1715592643664,-281.0,0.000299,2]
[326924569,1715592643674,-2717.41053113,0.0003,10]
[326924570,1715592643683,-155.09907182,0.0003,4]
[326924571,1715592643692,-381.27889825,0.0003,10]
[326924572,1715592643702,-154.73694719,0.0003,2]
[326924573,1715592643711,-6934.4206049,0.0003,2]
[326924574,1715592643720,-150.0,0.00030188,3]
[326924575,1715592643729,-448.03728289,0.00032,4]
[326924576,1715592643739,-150.0,0.00032414,5]
[326924577,1715592643748,-525.71381416,0.00033007,7]
[326924578,1715592643757,-160.554815,0.00033014,2]
[326924579,1715592643766,-525.71381416,0.000339,7]
[326924580,1715592643776,-525.71381416,0.00033973,7]
[326924581,1715592643785,-467.4319829,0.00034,4]
[326924582,1715592643794,-291.37136184,0.00034,2]
[326924583,1715592643803,-10691.78994856,0.00034,5]
[326924584,1715592643813,-589.0,0.00034,2]
[326924585,1715592643822,-525.71381416,0.00034331,7]
[326924586,1715592643831,-150.0,0.0003464,5]
[326924587,1715592643840,-1000.0,0.00034664,2]
[326924588,1715592643849,-1000.0,0.00034745,2]
[326924589,1715592643859,-525.71381416,0.00034795,7]
[326924590,1715592643870,-1000.0,0.00034824,2]
[326924591,1715592643879,-12080.43271466,0.000349,2]
[326924592,1715592643977,-163.259382,0.00034904,2]
[326924593,1715592643990,-18291.88599406,0.00035,15]
[326924594,1715592643999,-10310.99804873,0.00035,2]
[326924595,1715592644010,-2997.83110952,0.00035,4]
[326924596,1715592644019,-240.55164468,0.00035,4]
[326924597,1715592644029,-215.47326358,0.00035,4]
[326924598,1715592644038,-40644.80793062,0.00035,30]
[326924599,1715592644049,-397.29031706,0.00035,7]
[326924600,1715592644058,-525.71381416,0.0003507,7]
[326924601,1715592644067,-525.71381416,0.00035176,7]
[326924602,1715592644076,-941.67179657,0.000356,30]
[326924603,1715592644086,-330.91024601,0.00035616,120]
[326924604,1715592644096,-198.234533,0.00035616,120]
[326924605,1715592644105,-525.71381416,0.00035943,7]
[326924606,1715592644116,-525.71381416,0.00036078,7]
[326924607,1715592644125,-525.71381416,0.00036308,7]
[326924608,1715592644135,-150.0,0.00036468,2]
[326924609,1715592644144,-150.0,0.00036866,7]
[326924610,1715592644153,-970.89066943,0.00037,2]
[326924611,1715592644162,-15593.42640462,0.000377,90]
[326924612,1715592644172,-349.659806,0.000377,2]
[326924613,1715592644180,-349.659806,0.000377,2]
[326924614,1715592644190,-151.0,0.000377,2]
[326924615,1715592644199,-151.0,0.000377,2]
[326924616,1715592644208,-151.0,0.000377,2]
[326924617,1715592644216,-233.404086,0.00037848,2]
[326924618,1715592644225,-233.404086,0.00037848,2]
[326924619,1715592644235,-151.0,0.00037848,2]
[326924620,1715592644244,-212.868511,0.00037848,2]
[326924621,1715592644253,-212.868511,0.00037848,2]
[326924622,1715592644262,-151.0,0.00037848,2]
[326924623,1715592644271,-151.0,0.00037848,2]
[326924624,1715592644280,-151.0,0.00037848,2]
[326924625,1715592644289,-151.0,0.00037848,2]
[326924626,1715592644298,-150.175,0.00037848,2]
[326924627,1715592644307,-464.21084157,0.00037898,4]
[326924628,1715592644316,-178.40380257,0.00038,4]
[326924629,1715592644325,-823.39757229,0.00038,30]
[326924630,1715592644338,-397.21752999,0.00038,30]
[326924832,1715592647636,-154.77416006,0.00020911,2]
[326924833,1715592647645,-3738.85058478,0.00038,30]
[326924834,1715592647787,-49141.75248162,0.00038,30]
[326924847,1715592807387,802.7829814,9.999e-05,2]
[326924854,1715593019953,5024.97697601,0.000125,2]
[326924871,1715593268066,1625.2770642,9.999e-05,2]
[326924872,1715593268544,242.01164412,9.999e-05,2]
[326924873,1715593287812,154.75239617,9.999e-05,2]
[326924881,1715593570823,-242.01164412,0.00017861,2]
[326924882,1715593631144,-2495.40291208,0.00017862,2]
[326924883,1715593644146,-181.0039849,0.00017862,2]
[326924884,1715593644167,-691.5040352,0.00017863,2]
[326924885,1715593644192,-164.68619128,0.00017969,2]
[326924886,1715593644213,-155.23891012,0.00018067,2]
[326924887,1715593644233,-298.47777015,0.00018067,2]
[326924888,1715593644253,-302.68474492,0.00018067,2]
[326924889,1715593644274,-242.01164412,0.00018067,2]
[326924890,1715593644298,-155.00644803,0.00018068,2]
[326924891,1715593644318,-637.72189643,0.00018069,2]
[326924892,1715593711817,492.276641,9.999e-05,2]
[326924893,1715593711844,1391.50862222,9.999e-05,2]
[326924894,1715593718239,701.91934143,9.999e-05,2]
[326924914,1715593773078,-700.73960673,0.00018065,2]
[326924915,1715593773099,-154.90718629,0.00018066,2]
[326924916,1715593773119,-764.26918297,0.00018066,2]
[326924917,1715593773139,-303.32259816,0.00018067,2]
[326924918,1715593773160,-9760.56848827,0.00018067,2]
[326924932,1715593832208,-234.5576628,0.00017969,2]
[326924933,1715593832217,-991.2323372,0.00018066,2]
[326924934,1715593832229,-1.59811127,0.00018066,2]
[326924935,1715593832238,-5483.66420962,0.00018067,2]
[326924989,1715593838247,-17867.64907919,0.00018067,2]
[326924991,1715593838256,-194.50784143,0.00018068,2]
[326924993,1715593838265,-348.3610475,0.00018068,2]
[326924996,1715593838274,-22695.57642925,0.00018068,2]
[326924999,1715593838283,-21662.89279616,0.00018069,2]
[326925071,1715593841171,-257.98835679,0.00018069,2]
[326925072,1715593841299,-2341.39695062,0.00018069,2]
[326925073,1715593841308,-1407.23420979,0.00018069,2]
[326925074,1715593841316,-66.41386643,0.00018605,2]
[326925094,1715593843422,-333.92645003,0.00018605,2]
[326925105,1715593846258,-303.75,0.00018605,2]
[326925107,1715593846269,-217.16719931,0.00018605,2]
[326925108,1715593846279,-201.48248087,0.00018605,2]
[326925109,1715593846288,-189.42689207,0.00018605,2]
[326925111,1715593846297,-990.5930014,0.00018741,2]
[326925113,1715593846306,-122.74928715,0.00019178,2]
[326925116,1715593874996,412.008909,0.0001,2]
[326925117,1715593875017,2755.94774538,0.0001,2]
[326925118,1715593875038,93.3235744,0.0001,2]
[326925119,1715593886894,143.71223414,0.000138,2]
[326925120,1715593886916,601.47677937,0.000138,2]
[326925122,1715593910689,1625.2770642,9.999e-05,2]
[326925123,1715593918069,2632.0294246,9.999e-05,2]
[326925124,1715593945226,492.45162064,9.999e-05,2]
[326925137,1715594268427,699.69677538,9.999e-05,2]
[326925140,1715594432525,242.01164412,9.999e-05,2]
[326925145,1715594519706,1625.2770642,9.999e-05,2]
[326925155,1715594836284,187.1675762,0.00016801,2]
[326925157,1715594914169,24900.0,0.00016826,2]
[326925158,1715594948205,-157.568484,0.00017228,2]
[326925159,1715594948230,-241.86917684,0.00017771,2]
[326925160,1715594948249,-413.65051533,0.00017771,2]
[326925161,1715594948270,-742.60751396,0.00017772,2]
[326925162,1715594948289,-822.88065195,0.00017772,2]
[326925163,1715594961230,-14882.88346158,0.00017772,2]
[326925202,1715595032409,-153.23142217,0.00017987,2]
[326925204,1715595032418,-327.02551254,0.00018,2]
[326925251,1715595032841,-704.48965524,0.00018,2]
[326925253,1715595032850,-203.22303471,0.00018,2]
[326925255,1715595032859,-413.48806866,0.00018091,2]
[326925257,1715595032869,-227.62428928,0.000185,2]
[326925259,1715595032878,-227.62428927,0.000185,2]
[326925261,1715595032886,-227.62428927,0.000185,2]
[326925263,1715595032896,-833.60436794,0.00018988,2]
[326925265,1715595032905,-1231.91678958,0.00019068,2]
[326925267,1715595032914,-1222.15928828,0.00019068,2]
[326925270,1715595032926,-383.7998292,0.00019068,2]
[326925272,1715595032936,-341.42568432,0.00019068,2]
[326925274,1715595032946,-476.15140918,0.00019097,2]
[326925276,1715595032955,-237.03580854,0.00019097,2]
[326925278,1715595032964,-455.9748396,0.00019097,2]
[326925280,1715595032974,-1881.15407761,0.00019097,2]
[326925282,1715595032983,-2004.11949604,0.00019097,2]
[326925284,1715595032992,-1381.70780638,0.00019097,2]
[326925286,1715595033001,-1045.94110314,0.00019097,2]
[326925288,1715595033010,-657.01747562,0.00019097,2]
[326925290,1715595033019,-200.83617805,0.00019097,2]
[326925292,1715595033028,-6203.87500744,0.00019097,2]
[326925294,1715595033037,-219.79877394,0.00019098,2]
[326925296,1715595033046,-337.68462481,0.00019098,2]
[326925298,1715595033055,-755.91424368,0.00019098,2]
[326925300,1715595033064,-1874.09139414,0.00019098,2]
[326925302,1715595033073,-412.77576079,0.00019099,2]
[326925304,1715595033082,-222.17987839,0.00019099,2]
[326925306,1715595033091,-27074.88744355,0.00019099,2]
[326925308,1715595033103,-7952.294237,0.00019099,2]
[326925378,1715595038514,-1507.56776405,0.00019099,2]
[326925387,1715595041852,-512.84316135,0.00018743,2]
[326925388,1715595042342,-256.99799994,0.00018743,2]
[326925389,1715595042355,-39.4793985,0.00018743,2]
[326925390,1715595042365,-809.32055979,0.00018941,2]
[326925391,1715595042374,-651.23436951,0.00019099,2]
[326925415,1715595043461,-770.55057017,0.00018819,2]
[326925416,1715595043471,-922.46719568,0.00019098,2]
[326925417,1715595043480,-2581.98223415,0.00019099,2]
[326925418,1715595043739,-2295.07394384,0.00019099,2]
[326925421,1715595043749,-363.0,0.00019168,3]
[326925425,1715595043759,-155.10813337,0.00019177,2]
[326925428,1715595043769,-377.25071285,0.00019178,2]
[326925429,1715595043778,-500.0,0.00019178,2]
[326925431,1715595043787,-500.0,0.00019178,2]
[326925433,1715595043796,-500.0,0.00019178,2]
[326925434,1715595043807,-500.0,0.00019178,2]
[326925436,1715595043816,-500.0,0.00019178,2]
[326925438,1715595043825,-500.0,0.00019178,2]
[326925439,1715595043834,-500.0,0.00019178,2]
[326925440,1715595043844,-500.0,0.00019178,2]
[326925441,1715595043853,-500.0,0.00019178,2]
[326925442,1715595043862,-500.0,0.00019178,2]
[326925443,1715595043874,-500.0,0.00019178,2]
[326925444,1715595043884,-500.0,0.00019178,2]
[326925445,1715595043894,-500.0,0.00019178,2]
[326925446,1715595043904,-500.0,0.00019178,2]
[326925447,1715595043913,-500.0,0.00019178,2]
[326925448,1715595043922,-500.0,0.00019178,2]
[326925449,1715595043931,-500.0,0.00019178,2]
[326925450,1715595043940,-428.03998545,0.00019178,2]
[326925451,1715595043951,-500.0,0.00019178,2]
[326925452,1715595043960,-500.0,0.00019178,2]
[326925453,1715595043969,-500.0,0.00019178,2]
[326925454,1715595043977,-146.842732,0.00019178,2]
[326925463,1715595046761,-345.43390991,0.00019178,2]
[326925464,1715595046771,-500.0,0.00019178,2]
[326925465,1715595046782,-591.44933631,0.00019178,2]
[326925466,1715595046792,-500.0,0.00019178,2]
[326925467,1715595046804,-500.0,0.00019178,2]
[326925468,1715595046813,-500.0,0.00019178,2]
[326925469,1715595046823,-500.00000001,0.00019178,2]
[326925470,1715595046832,-500.0,0.00019178,2]
[326925471,1715595046842,-197.68978077,0.00019178,2]
[326925472,1715595046852,-627.13988476,0.00019178,2]
[326925473,1715595046863,-500.0,0.00019178,2]
[326925474,1715595046872,-173.549599,0.00019178,2]
[326925475,1715595046882,-177.103888,0.00019178,2]
[326925476,1715595046891,-175.01164253,0.00019294,2]
[326925477,1715595046901,-154.9902589,0.00019294,2]
[326925478,1715595046910,-409.50656843,0.00019294,2]
[326925479,1715595046919,-534.42574268,0.00019294,2]
[326925480,1715595046928,-175.08489923,0.00019294,2]
[326925481,1715595046937,-1487.36897854,0.00019294,2]
[326925483,1715595046946,-809.32055979,0.00019588,2]
[326925484,1715595046955,-5639.1235019,0.0002,2]
[326925485,1715595046964,-5797.76831247,0.00020812,2]
[326925486,1715595046973,-802.7829814,0.00020909,2]
[326925487,1715595046983,-500.0,0.0002091,2]
[326925488,1715595046992,-461.16328846,0.0002091,2]
[326925489,1715595047001,-500.0,0.0002091,2]
[326925490,1715595047010,-500.0,0.0002091,2]
[326925491,1715595047019,-415.78944171,0.0002091,2]
[326925492,1715595047027,-471.21166451,0.0002091,2]
[326925493,1715595047037,-468.0382546,0.0002091,2]
[326925494,1715595047046,-522.22817914,0.0002091,2]